Workbook

Sheet Sheet1
A1: 排名 | B1: 学号 | C1: 绩点 | D1: 综合绩点
A2: 1 | B2: 1800015173 | C2: 3.881 | D2: =SUM([1]综合绩点统计按排名!D2:E2) -> 3.9250
A3: 2 | B3: 1800015176 | C3: 3.847 | D3: =SUM([1]综合绩点统计按排名!D3:E3) -> 3.8840
A4: 3 | B4: 1800015197 | C4: 3.855 | D4: =SUM([1]综合绩点统计按排名!D4:E4) -> 3.8810
A5: 4 | B5: 1800015210 | C5: 3.824 | D5: =SUM([1]综合绩点统计按排名!D5:E5) -> 3.8600
A6: 5 | B6: 1800015104 | C6: 3.791 | D6: =SUM([1]综合绩点统计按排名!D6:E6) -> 3.8210
A7: 6 | B7: 1800015160 | C7: 3.811 | D7: =SUM([1]综合绩点统计按排名!D7:E7) -> 3.8110
A8: 7 | B8: 1800015114 | C8: 3.784 | D8: =SUM([1]综合绩点统计按排名!D8:E8) -> 3.8072
A9: 8 | B9: 1800015139 | C9: 3.748 | D9: =SUM([1]综合绩点统计按排名!D9:E9) -> 3.7924
A10: 9 | B10: 1800015141 | C10: 3.762 | D10: =SUM([1]综合绩点统计按排名!D10:E10) -> 3.7800
A11: 10 | B11: 1700017475 | C11: 3.779 | D11: =SUM([1]综合绩点统计按排名!D11:E11) -> 3.7790
A12: 11 | B12: 1800015167 | C12: 3.764 | D12: =SUM([1]综合绩点统计按排名!D12:E12) -> 3.7780
A13: 12 | B13: 1800015110 | C13: 3.753 | D13: =SUM([1]综合绩点统计按排名!D13:E13) -> 3.7760
A14: 13 | B14: 1800015209 | C14: 3.755 | D14: =SUM([1]综合绩点统计按排名!D14:E14) -> 3.7750
A15: 14 | B15: 1800015203 | C15: 3.732 | D15: =SUM([1]综合绩点统计按排名!D15:E15) -> 3.7680
A16: 15 | B16: 1700014718 | C16: 3.740 | D16: =SUM([1]综合绩点统计按排名!D16:E16) -> 3.7530
A17: 16 | B17: 1800015190 | C17: 3.753 | D17: =SUM([1]综合绩点统计按排名!D17:E17) -> 3.7530
A18: 17 | B18: 1700018317 | C18: 3.742 | D18: =SUM([1]综合绩点统计按排名!D18:E18) -> 3.7480
A19: 18 | B19: 1800015106 | C19: 3.731 | D19: =SUM([1]综合绩点统计按排名!D19:E19) -> 3.7470
A20: 19 | B20: 1800015146 | C20: 3.725 | D20: 3.7470
A21: 20 | B21: 1800015107 | C21: 3.728 | D21: =SUM([1]综合绩点统计按排名!D21:E21) -> 3.7460
A22: 21 | B22: 1800015165 | C22: 3.743 | D22: =SUM([1]综合绩点统计按排名!D22:E22) -> 3.7430
A23: 22 | B23: 1800015134 | C23: 3.716 | D23: =SUM([1]综合绩点统计按排名!D23:E23) -> 3.7360
A24: 23 | B24: 1800015152 | C24: 3.709 | D24: =SUM([1]综合绩点统计按排名!D24:E24) -> 3.7360
A25: 24 | B25: 1800015149 | C25: 3.682 | D25: =SUM([1]综合绩点统计按排名!D25:E25) -> 3.7350
A26: 25 | B26: 1800015211 | C26: 3.715 | D26: =SUM([1]综合绩点统计按排名!D26:E26) -> 3.7322
A27: 26 | B27: 1800015109 | C27: 3.680 | D27: =SUM([1]综合绩点统计按排名!D27:E27) -> 3.7320
A28: 27 | B28: 1800015163 | C28: 3.728 | D28: =SUM([1]综合绩点统计按排名!D28:E28) -> 3.7280
A29: 28 | B29: 1800015202 | C29: 3.715 | D29: =SUM([1]综合绩点统计按排名!D29:E29) -> 3.7230
A30: 29 | B30: 1800017407 | C30: 3.717 | D30: =SUM([1]综合绩点统计按排名!D30:E30) -> 3.7230
A31: 30 | B31: 1800015131 | C31: 3.685 | D31: =SUM([1]综合绩点统计按排名!D31:E31) -> 3.7170
A32: 31 | B32: 1800015186 | C32: 3.706 | D32: =SUM([1]综合绩点统计按排名!D32:E32) -> 3.7130
A33: 32 | B33: 1800015187 | C33: 3.707 | D33: =SUM([1]综合绩点统计按排名!D33:E33) -> 3.7070
A34: 33 | B34: 1800015121 | C34: 3.692 | D34: =SUM([1]综合绩点统计按排名!D34:E34) -> 3.7060
A35: 34 | B35: 1800015194 | C35: 3.672 | D35: =SUM([1]综合绩点统计按排名!D35:E35) -> 3.7060
A36: 35 | B36: 1800015157 | C36: 3.694 | D36: =SUM([1]综合绩点统计按排名!D36:E36) -> 3.7000
A37: 36 | B37: 1800015133 | C37: 3.699 | D37: =SUM([1]综合绩点统计按排名!D37:E37) -> 3.6990
A38: 37 | B38: 1800015196 | C38: 3.693 | D38: =SUM([1]综合绩点统计按排名!D38:E38) -> 3.6990
A39: 38 | B39: 1800015166 | C39: 3.694 | D39: =SUM([1]综合绩点统计按排名!D39:E39) -> 3.6940
A40: 39 | B40: 1800015151 | C40: 3.693 | D40: =SUM([1]综合绩点统计按排名!D40:E40) -> 3.6930
A41: 40 | B41: 1800015198 | C41: 3.650 | D41: =SUM([1]综合绩点统计按排名!D41:E41) -> 3.6930
A42: 41 | B42: 1800015168 | C42: 3.675 | D42: =SUM([1]综合绩点统计按排名!D42:E42) -> 3.6910
A43: 42 | B43: 1800015162 | C43: 3.690 | D43: =SUM([1]综合绩点统计按排名!D43:E43) -> 3.6900
A44: 43 | B44: 1700018733 | C44: 3.640 | D44: =SUM([1]综合绩点统计按排名!D44:E44) -> 3.6800
A45: 44 | B45: 1800015119 | C45: 3.671 | D45: =SUM([1]综合绩点统计按排名!D45:E45) -> 3.6770
A46: 45 | B46: 1700015897 | C46: 3.674 | D46: =SUM([1]综合绩点统计按排名!D46:E46) -> 3.6740
A47: 46 | B47: 1800015118 | C47: 3.660 | D47: =SUM([1]综合绩点统计按排名!D47:E47) -> 3.6740
A48: 47 | B48: 1800018117 | C48: 3.674 | D48: =SUM([1]综合绩点统计按排名!D48:E48) -> 3.6740
A49: 48 | B49: 1800014934 | C49: 3.667 | D49: =SUM([1]综合绩点统计按排名!D49:E49) -> 3.6670
A50: 49 | B50: 1800015177 | C50: 3.651 | D50: =SUM([1]综合绩点统计按排名!D50:E50) -> 3.6510
A51: 50 | B51: 1800015171 | C51: 3.649 | D51: =SUM([1]综合绩点统计按排名!D51:E51) -> 3.6490
A52: 51 | B52: 1800015204 | C52: 3.649 | D52: =SUM([1]综合绩点统计按排名!D52:E52) -> 3.6490
A53: 52 | B53: 1700018814 | C53: 3.648 | D53: =SUM([1]综合绩点统计按排名!D53:E53) -> 3.6480
A54: 53 | B54: 1800015170 | C54: 3.639 | D54: =SUM([1]综合绩点统计按排名!D54:E54) -> 3.6450
A55: 54 | B55: 1800015200 | C55: 3.639 | D55: =SUM([1]综合绩点统计按排名!D55:E55) -> 3.6390
A56: 55 | B56: 1700013944 | C56: 3.638 | D56: =SUM([1]综合绩点统计按排名!D56:E56) -> 3.6380
A57: 56 | B57: 1800015122 | C57: 3.638 | D57: =SUM([1]综合绩点统计按排名!D57:E57) -> 3.6380
A58: 57 | B58: 1800015142 | C58: 3.607 | D58: =SUM([1]综合绩点统计按排名!D58:E58) -> 3.6290
A59: 58 | B59: 1800015164 | C59: 3.572 | D59: =SUM([1]综合绩点统计按排名!D59:E59) -> 3.6240
A60: 59 | B60: 1800015113 | C60: 3.621 | D60: =SUM([1]综合绩点统计按排名!D60:E60) -> 3.6210
A61: 60 | B61: 1800015147 | C61: 3.621 | D61: =SUM([1]综合绩点统计按排名!D61:E61) -> 3.6210
A62: 61 | B62: 1700015171 | C62: 3.620 | D62: =SUM([1]综合绩点统计按排名!D62:E62) -> 3.6200
A63: 62 | B63: 1800015195 | C63: 3.612 | D63: =SUM([1]综合绩点统计按排名!D63:E63) -> 3.6180
A64: 63 | B64: 1800092408 | C64: 3.614 | D64: =SUM([1]综合绩点统计按排名!D64:E64) -> 3.6140
A65: 64 | B65: 1700017476 | C65: 3.609 | D65: =SUM([1]综合绩点统计按排名!D65:E65) -> 3.6090
A66: 65 | B66: 1800015184 | C66: 3.608 | D66: =SUM([1]综合绩点统计按排名!D66:E66) -> 3.6080
A67: 66 | B67: 1800015115 | C67: 3.591 | D67: =SUM([1]综合绩点统计按排名!D67:E67) -> 3.6050
A68: 67 | B68: 1700018742 | C68: 3.604 | D68: =SUM([1]综合绩点统计按排名!D68:E68) -> 3.6040
A69: 68 | B69: 1800013522 | C69: 3.592 | D69: =SUM([1]综合绩点统计按排名!D69:E69) -> 3.6020
A70: 69 | B70: 1700018318 | C70: 3.599 | D70: =SUM([1]综合绩点统计按排名!D70:E70) -> 3.5990
A71: 70 | B71: 1800015181 | C71: 3.573 | D71: =SUM([1]综合绩点统计按排名!D71:E71) -> 3.5910
A72: 71 | B72: 1800017755 | C72: 3.588 | D72: =SUM([1]综合绩点统计按排名!D72:E72) -> 3.5880
A73: 72 | B73: 1800015130 | C73: 3.585 | D73: =SUM([1]综合绩点统计按排名!D73:E73) -> 3.5850
A74: 73 | B74: 1800092406 | C74: 3.579 | D74: =SUM([1]综合绩点统计按排名!D74:E74) -> 3.5790
A75: 74 | B75: 1800015127 | C75: 3.569 | D75: =SUM([1]综合绩点统计按排名!D75:E75) -> 3.5690
A76: 75 | B76: 1800015137 | C76: 3.551 | D76: =SUM([1]综合绩点统计按排名!D76:E76) -> 3.5630
A77: 76 | B77: 1800015172 | C77: 3.561 | D77: =SUM([1]综合绩点统计按排名!D77:E77) -> 3.5610
A78: 77 | B78: 1800015120 | C78: 3.535 | D78: =SUM([1]综合绩点统计按排名!D78:E78) -> 3.5590
A79: 78 | B79: 1800015124 | C79: 3.556 | D79: =SUM([1]综合绩点统计按排名!D79:E79) -> 3.5560
A80: 79 | B80: 1800015136 | C80: 3.543 | D80: =SUM([1]综合绩点统计按排名!D80:E80) -> 3.5550
A81: 80 | B81: 1800015185 | C81: 3.552 | D81: =SUM([1]综合绩点统计按排名!D81:E81) -> 3.5520
A82: 81 | B82: 1800015108 | C82: 3.548 | D82: =SUM([1]综合绩点统计按排名!D82:E82) -> 3.5480
A83: 82 | B83: 1800015158 | C83: 3.542 | D83: =SUM([1]综合绩点统计按排名!D83:E83) -> 3.5420
A84: 83 | B84: 1800015126 | C84: 3.522 | D84: =SUM([1]综合绩点统计按排名!D84:E84) -> 3.5380
A85: 84 | B85: 1700011729 | C85: 3.534 | D85: =SUM([1]综合绩点统计按排名!D85:E85) -> 3.5340
A86: 85 | B86: 1800015112 | C86: 3.533 | D86: =SUM([1]综合绩点统计按排名!D86:E86) -> 3.5330
A87: 86 | B87: 1800015148 | C87: 3.529 | D87: =SUM([1]综合绩点统计按排名!D87:E87) -> 3.5290
A88: 87 | B88: 1800015208 | C88: 3.491 | D88: =SUM([1]综合绩点统计按排名!D88:E88) -> 3.5250
A89: 88 | B89: 1800015129 | C89: 3.520 | D89: =SUM([1]综合绩点统计按排名!D89:E89) -> 3.5200
A90: 89 | B90: 1800015180 | C90: 3.520 | D90: =SUM([1]综合绩点统计按排名!D90:E90) -> 3.5200
A91: 90 | B91: 1800092416 | C91: 3.516 | D91: =SUM([1]综合绩点统计按排名!D91:E91) -> 3.5160
A92: 91 | B92: 1800015159 | C92: 3.513 | D92: =SUM([1]综合绩点统计按排名!D92:E92) -> 3.5130
A93: 92 | B93: 1800015212 | C93: 3.511 | D93: =SUM([1]综合绩点统计按排名!D93:E93) -> 3.5110
A94: 93 | B94: 1800015205 | C94: 3.509 | D94: =SUM([1]综合绩点统计按排名!D94:E94) -> 3.5090
A95: 94 | B95: 1800014715 | C95: 3.508 | D95: =SUM([1]综合绩点统计按排名!D95:E95) -> 3.5080
A96: 95 | B96: 1800015155 | C96: 3.492 | D96: =SUM([1]综合绩点统计按排名!D96:E96) -> 3.4920
A97: 96 | B97: 1800015220 | C97: 3.487 | D97: =SUM([1]综合绩点统计按排名!D97:E97) -> 3.4870
A98: 97 | B98: 1800015169 | C98: 3.473 | D98: =SUM([1]综合绩点统计按排名!D98:E98) -> 3.4730
A99: 98 | B99: 1800092403 | C99: 3.473 | D99: =SUM([1]综合绩点统计按排名!D99:E99) -> 3.4730
A100: 99 | B100: 1800092405 | C100: 3.469 | D100: =SUM([1]综合绩点统计按排名!D100:E100) -> 3.4690
A101: 100 | B101: 1800015206 | C101: 3.465 | D101: =SUM([1]综合绩点统计按排名!D101:E101) -> 3.4650
A102: 101 | B102: 1800092424 | C102: 3.464 | D102: =SUM([1]综合绩点统计按排名!D102:E102) -> 3.4640
A103: 102 | B103: 1700015146 | C103: 3.455 | D103: =SUM([1]综合绩点统计按排名!D103:E103) -> 3.4550
A104: 103 | B104: 1800015161 | C104: 3.454 | D104: =SUM([1]综合绩点统计按排名!D104:E104) -> 3.4540
A105: 104 | B105: 1800015103 | C105: 3.450 | D105: =SUM([1]综合绩点统计按排名!D105:E105) -> 3.4500
A106: 105 | B106: 1800015199 | C106: 3.440 | D106: =SUM([1]综合绩点统计按排名!D106:E106) -> 3.4400
A107: 106 | B107: 1800015175 | C107: 3.432 | D107: =SUM([1]综合绩点统计按排名!D107:E107) -> 3.4320
A108: 107 | B108: 1800092432 | C108: 3.428 | D108: =SUM([1]综合绩点统计按排名!D108:E108) -> 3.4280
A109: 108 | B109: 1800015150 | C109: 3.421 | D109: =SUM([1]综合绩点统计按排名!D109:E109) -> 3.4210
A110: 109 | B110: 1800015201 | C110: 3.389 | D110: =SUM([1]综合绩点统计按排名!D110:E110) -> 3.4090
A111: 110 | B111: 1800015116 | C111: 3.402 | D111: =SUM([1]综合绩点统计按排名!D111:E111) -> 3.4020
A112: 111 | B112: 1800015213 | C112: 3.393 | D112: =SUM([1]综合绩点统计按排名!D112:E112) -> 3.3930
A113: 112 | B113: 1800015207 | C113: 3.381 | D113: =SUM([1]综合绩点统计按排名!D113:E113) -> 3.3810
A114: 113 | B114: 1800017409 | C114: 3.367 | D114: =SUM([1]综合绩点统计按排名!D114:E114) -> 3.3670
A115: 114 | B115: 1800015123 | C115: 3.321 | D115: =SUM([1]综合绩点统计按排名!D115:E115) -> 3.3602
A116: 115 | B116: 1800092428 | C116: 3.354 | D116: =SUM([1]综合绩点统计按排名!D116:E116) -> 3.3540
A117: 116 | B117: 1500015164 | C117: 3.330 | D117: =SUM([1]综合绩点统计按排名!D117:E117) -> 3.3500
A118: 117 | B118: 1800015135 | C118: 3.335 | D118: =SUM([1]综合绩点统计按排名!D118:E118) -> 3.3350
A119: 118 | B119: 1800092419 | C119: 3.334 | D119: =SUM([1]综合绩点统计按排名!D119:E119) -> 3.3340
A120: 119 | B120: 1800015219 | C120: 3.327 | D120: =SUM([1]综合绩点统计按排名!D120:E120) -> 3.3270
A121: 120 | B121: 1800015214 | C121: 3.313 | D121: =SUM([1]综合绩点统计按排名!D121:E121) -> 3.3130
A122: 121 | B122: 1800015218 | C122: 3.310 | D122: =SUM([1]综合绩点统计按排名!D122:E122) -> 3.3100
A123: 122 | B123: 1800015217 | C123: 3.303 | D123: =SUM([1]综合绩点统计按排名!D123:E123) -> 3.3030
A124: 123 | B124: 1800015216 | C124: 3.298 | D124: =SUM([1]综合绩点统计按排名!D124:E124) -> 3.2980
A125: 124 | B125: 1800015179 | C125: 3.284 | D125: =SUM([1]综合绩点统计按排名!D125:E125) -> 3.2840
A126: 125 | B126: 1800017450 | C126: 3.247 | D126: =SUM([1]综合绩点统计按排名!D126:E126) -> 3.2470
A127: 126 | B127: 1800015191 | C127: 3.222 | D127: =SUM([1]综合绩点统计按排名!D127:E127) -> 3.2220
A128: 127 | B128: 1800016654 | C128: 3.215 | D128: =SUM([1]综合绩点统计按排名!D128:E128) -> 3.2150
A129: 128 | B129: 1800092423 | C129: 3.213 | D129: =SUM([1]综合绩点统计按排名!D129:E129) -> 3.2130
A130: 129 | B130: 1700016913 | C130: 3.183 | D130: =SUM([1]综合绩点统计按排名!D130:E130) -> 3.1830
A131: 130 | B131: 1800015188 | C131: 3.177 | D131: =SUM([1]综合绩点统计按排名!D131:E131) -> 3.1770
A132: 131 | B132: 1800015174 | C132: 3.127 | D132: =SUM([1]综合绩点统计按排名!D132:E132) -> 3.1530
A133: 132 | B133: 1800092443 | C133: 3.139 | D133: =SUM([1]综合绩点统计按排名!D133:E133) -> 3.1390
A134: 133 | B134: 1700015103 | C134: 3.086 | D134: =SUM([1]综合绩点统计按排名!D134:E134) -> 3.1180
A135: 134 | B135: 1800015140 | C135: 3.113 | D135: =SUM([1]综合绩点统计按排名!D135:E135) -> 3.1130
A136: 135 | B136: 1800092418 | C136: 3.112 | D136: =SUM([1]综合绩点统计按排名!D136:E136) -> 3.1120
A137: 136 | B137: 1800015128 | C137: 3.096 | D137: =SUM([1]综合绩点统计按排名!D137:E137) -> 3.0960
A138: 137 | B138: 1800092422 | C138: 3.084 | D138: =SUM([1]综合绩点统计按排名!D138:E138) -> 3.0840
A139: 138 | B139: 1800015101 | C139: 3.072 | D139: =SUM([1]综合绩点统计按排名!D139:E139) -> 3.0720
A140: 139 | B140: 1700015104 | C140: 3.043 | D140: =SUM([1]综合绩点统计按排名!D140:E140) -> 3.0430
A141: 140 | B141: 1800092434 | C141: 3.041 | D141: =SUM([1]综合绩点统计按排名!D141:E141) -> 3.0410
A142: 141 | B142: 1800015111 | C142: 3.006 | D142: =SUM([1]综合绩点统计按排名!D142:E142) -> 3.0060
A143: 142 | B143: 1600092409 | C143: 3.005 | D143: =SUM([1]综合绩点统计按排名!D143:E143) -> 3.0050
A144: 143 | B144: 1800015192 | C144: 2.988 | D144: =SUM([1]综合绩点统计按排名!D144:E144) -> 2.9880
A145: 144 | B145: 1600092407 | C145: 2.978 | D145: =SUM([1]综合绩点统计按排名!D145:E145) -> 2.9780
A146: 145 | B146: 1600092411 | C146: 2.975 | D146: =SUM([1]综合绩点统计按排名!D146:E146) -> 2.9750
A147: 146 | B147: 1800092437 | C147: 2.972 | D147: =SUM([1]综合绩点统计按排名!D147:E147) -> 2.9720
A148: 147 | B148: 1800092429 | C148: 2.970 | D148: =SUM([1]综合绩点统计按排名!D148:E148) -> 2.9700
A149: 148 | B149: 1800092435 | C149: 2.954 | D149: =SUM([1]综合绩点统计按排名!D149:E149) -> 2.9540
A150: 149 | B150: 1800092413 | C150: 2.937 | D150: =SUM([1]综合绩点统计按排名!D150:E150) -> 2.9370
A151: 150 | B151: 1800092415 | C151: 2.925 | D151: =SUM([1]综合绩点统计按排名!D151:E151) -> 2.9250
A152: 151 | B152: 1500094616 | C152: 2.906 | D152: =SUM([1]综合绩点统计按排名!D152:E152) -> 2.9060
A153: 152 | B153: 1800092417 | C153: 2.905 | D153: =SUM([1]综合绩点统计按排名!D153:E153) -> 2.9050
A154: 153 | B154: 1800092441 | C154: 2.870 | D154: =SUM([1]综合绩点统计按排名!D154:E154) -> 2.8700
A155: 154 | B155: 1700092441 | C155: 2.866 | D155: =SUM([1]综合绩点统计按排名!D155:E155) -> 2.8660
A156: 155 | B156: 1700015147 | C156: 2.844 | D156: =SUM([1]综合绩点统计按排名!D156:E156) -> 2.8440
A157: 156 | B157: 1700015168 | C157: 2.838 | D157: =SUM([1]综合绩点统计按排名!D157:E157) -> 2.8380
A158: 157 | B158: 1700015135 | C158: 2.814 | D158: =SUM([1]综合绩点统计按排名!D158:E158) -> 2.8140
A159: 158 | B159: 1800092439 | C159: 2.781 | D159: =SUM([1]综合绩点统计按排名!D159:E159) -> 2.7810
A160: 159 | B160: 1800092431 | C160: 2.763 | D160: =SUM([1]综合绩点统计按排名!D160:E160) -> 2.7630
A161: 160 | B161: 1600092405 | C161: 2.758 | D161: =SUM([1]综合绩点统计按排名!D161:E161) -> 2.7580
A162: 161 | B162: 1700015119 | C162: 2.728 | D162: =SUM([1]综合绩点统计按排名!D162:E162) -> 2.7280
A163: 162 | B163: 1800092436 | C163: 2.702 | D163: =SUM([1]综合绩点统计按排名!D163:E163) -> 2.7020
A164: 163 | B164: 1800092440 | C164: 2.693 | D164: =SUM([1]综合绩点统计按排名!D164:E164) -> 2.6930
A165: 164 | B165: 1800092442 | C165: 2.674 | D165: =SUM([1]综合绩点统计按排名!D165:E165) -> 2.6740
A166: 165 | B166: 1700092432 | C166: 2.596 | D166: =SUM([1]综合绩点统计按排名!D166:E166) -> 2.5960
A167: 166 | B167: 1700015148 | C167: 2.532 | D167: =SUM([1]综合绩点统计按排名!D167:E167) -> 2.5320
A168: 167 | B168: 1600092413 | C168: 2.525 | D168: =SUM([1]综合绩点统计按排名!D168:E168) -> 2.5250
A169: 168 | B169: 1800092411 | C169: 2.334 | D169: =SUM([1]综合绩点统计按排名!D169:E169) -> 2.3340
A170: 169 | B170: 1500092432 | C170: 2.277 | D170: =SUM([1]综合绩点统计按排名!D170:E170) -> 2.2770
A171: 170 | B171: 1800017729 | C171: 2.201 | D171: =SUM([1]综合绩点统计按排名!D171:E171) -> 2.2010
